fUSD/lending_fUSD_20240712
["ID","MTS","AMOUNT","RATE_DAILY","PERIOD"]
[331785425,1720763433038,-612.88,0.00013698,2]
[331785426,1720763433047,-500.0,0.00013698,2]
[331785427,1720763433057,-497.03133282,0.00013698,2]
[331785428,1720763433066,-1333.88,0.00013698,2]
[331785429,1720763433075,-872.68,0.00013698,2]
[331785430,1720763433084,-500.0,0.00013698,2]
[331785431,1720763433093,-1623.81,0.00013698,2]
[331785432,1720763433102,-500.0,0.00013698,2]
[331785433,1720763433112,-500.0,0.00013698,2]
[331785434,1720763433121,-500.0,0.00013698,2]
[331785435,1720763433131,-800.77,0.00013698,2]
[331785436,1720763433139,-500.0,0.00013698,2]
[331785437,1720763433149,-500.0,0.00013698,2]
[331785438,1720763433159,-500.0,0.00013698,2]
[331785439,1720763433168,-500.0,0.00013698,2]
[331785440,1720763433178,-500.0,0.00013698,2]
[331785441,1720763433187,-500.0,0.00013698,2]
[331785442,1720763433197,-643.02,0.00013698,2]
[331785443,1720763433206,-500.0,0.00013698,2]
[331785444,1720763433215,-549.31,0.00013698,2]
[331785445,1720763433224,-500.0,0.00013698,2]
[331785446,1720763433234,-605.5,0.00013698,2]
[331785447,1720763433243,-500.0,0.00013698,2]
[331785448,1720763433252,-1327.0318681,0.00013698,2]
[331785456,1720763437423,-2500.0,0.00012,2]
[331785457,1720763437432,-6.6381319,0.00013698,2]
[331785459,1720763437442,-500.0,0.00013698,2]
[331785461,1720763437451,-500.0,0.00013698,2]
[331785463,1720763437460,-500.0,0.00013698,2]
[331785464,1720763437469,-500.0,0.00013698,2]
[331785465,1720763437478,-500.0,0.00013698,2]
[331785466,1720763437487,-500.0,0.00013698,2]
[331785467,1720763437496,-500.0,0.00013698,2]
[331785468,1720763437505,-950.51,0.00013698,2]
[331785469,1720763437514,-860.57,0.00013698,2]
[331785470,1720763437523,-500.0,0.00013698,2]
[331785471,1720763437532,-500.0,0.00013698,2]
[331785472,1720763437541,-500.0,0.00013698,2]
[331785473,1720763437550,-500.0,0.00013698,2]
[331785474,1720763437560,-500.0,0.00013698,2]
[331785475,1720763437569,-324.66762498,0.00013698,2]
[331785476,1720763437578,-500.0,0.00013698,2]
[331785477,1720763437587,-514.07826976,0.00013698,2]
[331785478,1720763437596,-1482.38,0.00013698,2]
[331785479,1720763437606,-500.0,0.00013698,2]
[331785480,1720763437615,-464.26856952,0.00013698,2]
[331785481,1720763437625,-1224.36,0.00013698,2]
[331785482,1720763437634,-500.0,0.00013698,2]
[331785483,1720763437644,-533.51,0.00013698,2]
[331785484,1720763437653,-500.0,0.00013698,2]
[331785485,1720763437663,-1715.29,0.00013698,2]
[331785486,1720763437672,-500.0,0.00013698,2]
[331785487,1720763437681,-528.27,0.00013698,2]
[331785488,1720763437691,-574.92,0.00013698,2]
[331785489,1720763437700,-500.0,0.00013698,2]
[331785490,1720763437943,-500.0,0.00013698,2]
[331785491,1720763437953,-312.16299066,0.00013698,2]
[331785492,1720763437962,-500.0,0.00013698,2]
[331785493,1720763437972,-500.0,0.00013698,2]
[331785494,1720763437980,-500.0,0.00013698,2]
[331785495,1720763437989,-500.0,0.00013698,2]
[331785496,1720763437999,-384.71316584,0.00013698,2]
[331785497,1720763438018,-115.28683416,0.00013698,2]
[331785498,1720763438027,-500.0,0.00013698,2]
[331785499,1720763438037,-500.0,0.00013698,2]
[331785500,1720763438046,-500.0,0.00013698,2]
[331785501,1720763438055,-500.0,0.00013698,2]
[331785502,1720763438068,-500.0,0.00013698,2]
[331785503,1720763438077,-641.67,0.00013698,2]
[331785504,1720763438086,-500.0,0.00013698,2]
[331785505,1720763438095,-500.0,0.00013698,2]
[331785506,1720763438104,-500.0,0.00013698,2]
[331785507,1720763438114,-500.0,0.00013698,2]
[331785508,1720763438123,-500.0,0.00013698,2]
[331785509,1720763438132,-500.0,0.00013698,2]
[331785510,1720763438141,-647.9,0.00013698,2]
[331785511,1720763438150,-500.0,0.00013698,2]
[331785512,1720763438160,-500.0,0.00013698,2]
[331785513,1720763438169,-500.0,0.00013698,2]
[331785514,1720763438178,-500.0,0.00013698,2]
[331785515,1720763438188,-500.0,0.00013698,2]
[331785516,1720763438197,-1007.13,0.00013698,2]
[331785517,1720763438206,-500.0,0.00013698,2]
[331785518,1720763438216,-500.0,0.00013698,2]
[331785519,1720763438225,-500.0,0.00013698,2]
[331785520,1720763438234,-500.0,0.00013698,2]
[331785521,1720763438243,-613.34,0.00013698,2]
[331785522,1720763438253,-500.0,0.00013698,2]
[331785523,1720763438262,-500.0,0.00013698,2]
[331785524,1720763438271,-758.79468884,0.00013698,2]
[331785525,1720763438285,-214.43531116,0.00013698,2]
[331785526,1720763438295,-148.68938877,0.00013698,2]
[331785527,1720763438308,-527.55061123,0.00013698,2]
[331785528,1720763438319,-500.0,0.00013698,2]
[331785529,1720763438328,-214.89101583,0.00013698,2]
[331785530,1720763438349,-285.10898417,0.00013698,2]
[331785531,1720763438358,-170.08404502,0.00013698,2]
[331785532,1720763438370,-959.26636,0.00013698,2]
[331785533,1720763438381,-302.52178472,0.00013698,2]
[331785534,1720763438401,-82.66781026,0.00013698,2]
[331785535,1720763438413,-595.87,0.00013698,2]
[331785536,1720763438423,-500.0,0.00013698,2]
[331785537,1720763438434,-500.0,0.00013698,2]
[331785538,1720763438445,-571.95,0.00013698,2]
[331785539,1720763438455,-500.0,0.00013698,2]
[331785540,1720763438465,-500.0,0.00013698,2]
[331785541,1720763438476,-500.0,0.00013698,2]
[331785542,1720763438486,-500.0,0.00013698,2]
[331785543,1720763438496,-500.0,0.00013698,2]
[331785544,1720763438507,-500.0,0.00013698,2]
[331785545,1720763438518,-500.0,0.00013698,2]
[331785546,1720763438530,-500.0,0.00013698,2]
[331785547,1720763438541,-500.0,0.00013698,2]
[331785548,1720763438552,-500.0,0.00013698,2]
[331785549,1720763438565,-500.0,0.00013698,2]
[331785550,1720763438575,-500.0,0.00013698,2]
[331785551,1720763438584,-500.0,0.00013698,2]
[331785552,1720763438594,-548.58,0.00013698,2]
[331785553,1720763438604,-664.98,0.00013698,2]
[331785554,1720763438614,-500.0,0.00013698,2]
[331785555,1720763438624,-500.0,0.00013698,2]
[331785556,1720763438634,-500.0,0.00013698,2]
[331785557,1720763438644,-224.81578921,0.00013698,2]
[331785558,1720763438654,-500.0,0.00013698,2]
[331785559,1720763438666,-500.0,0.00013698,2]
[331785560,1720763438676,-500.0,0.00013698,2]
[331785561,1720763438687,-500.0,0.00013698,2]
[331785562,1720763438698,-500.0,0.00013698,2]
[331785563,1720763438709,-500.0,0.00013698,2]
[331785564,1720763438720,-547.22,0.00013698,2]
[331785565,1720763438733,-1098.81,0.00013698,2]
[331785566,1720763438745,-500.0,0.00013698,2]
[331785567,1720763438756,-500.0,0.00013698,2]
[331785568,1720763438767,-500.0,0.00013698,2]
[331785569,1720763438779,-566.86,0.00013698,2]
[331785570,1720763438789,-500.0,0.00013698,2]
[331785571,1720763438801,-907.32,0.00013698,2]
[331785572,1720763438818,-761.45,0.00013698,2]
[331785573,1720763438828,-500.0,0.00013698,2]
[331785574,1720763438837,-500.0,0.00013698,2]
[331785575,1720763438847,-500.0,0.00013698,2]
[331785576,1720763438857,-500.0,0.00013698,2]
[331785577,1720763438867,-500.0,0.00013698,2]
[331785578,1720763438876,-500.0,0.00013698,2]
[331785579,1720763438886,-661.69,0.00013698,2]
[331785580,1720763438896,-500.0,0.00013698,2]
[331785581,1720763438906,-1595.54,0.00013698,2]
[331785582,1720763438916,-248.34055541,0.00013698,2]
[331785583,1720763438928,-864.13,0.00013698,2]
[331785584,1720763438939,-500.0,0.00013698,2]
[331785585,1720763438951,-500.0,0.00013698,2]
[331785586,1720763438961,-500.0,0.00013698,2]
[331785587,1720763438973,-500.0,0.00013698,2]
[331785588,1720763438984,-500.0,0.00013698,2]
[331785589,1720763438993,-987.51,0.00013698,2]
[331785590,1720763439004,-500.0,0.00013698,2]
[331785591,1720763439015,-500.0,0.00013698,2]
[331785592,1720763439024,-500.0,0.00013698,2]
[331785593,1720763439035,-500.0,0.00013698,2]
[331785594,1720763439047,-500.0,0.00013698,2]
[331785595,1720763439057,-500.0,0.00013698,2]
[331785596,1720763439072,-500.0,0.00013698,2]
[331785597,1720763439082,-512.14,0.00013698,2]
[331785598,1720763439092,-735.82,0.00013698,2]
[331785599,1720763439102,-500.0,0.00013698,2]
[331785600,1720763439111,-500.0,0.00013698,2]
[331785601,1720763439121,-500.0,0.00013698,2]
[331785602,1720763439131,-500.0,0.00013698,2]
[331785603,1720763439141,-500.0,0.00013698,2]
[331785604,1720763439151,-500.0,0.00013698,2]
[331785605,1720763439160,-500.0,0.00013698,2]
[331785606,1720763439170,-500.0,0.00013698,2]
[331785607,1720763439182,-500.0,0.00013698,2]
[331785608,1720763439195,-500.0,0.00013698,2]
[331785609,1720763439206,-500.0,0.00013698,2]
[331785610,1720763439219,-500.0,0.00013698,2]
[331785611,1720763439231,-1471.34,0.00013698,2]
[331785612,1720763439241,-500.0,0.00013698,2]
[331785613,1720763439252,-500.0,0.00013698,2]
[331785614,1720763439263,-500.0,0.00013698,2]
[331785615,1720763439272,-830.83,0.00013698,2]
[331785616,1720763439282,-567.86,0.00013698,2]
[331785617,1720763439291,-1047.84,0.00013698,2]
[331785618,1720763439301,-1020.43,0.00013698,2]
[331785619,1720763439314,-500.0,0.00013698,2]
[331785620,1720763439323,-500.0,0.00013698,2]
[331785621,1720763439333,-500.0,0.00013698,2]
[331785622,1720763439343,-500.0,0.00013698,2]
[331785623,1720763439353,-530.86,0.00013698,2]
[331785624,1720763439363,-500.0,0.00013698,2]
[331785625,1720763439373,-556.18,0.00013698,2]
[331785626,1720763439383,-500.0,0.00013698,2]
[331785627,1720763439392,-862.65,0.00013698,2]
[331785628,1720763439402,-500.0,0.00013698,2]
[331785629,1720763439412,-1199.14,0.00013698,2]
[331785630,1720763439421,-500.0,0.00013698,2]
[331785631,1720763439431,-500.0,0.00013698,2]
[331785632,1720763439441,-500.0,0.00013698,2]
[331785633,1720763439450,-1029.61,0.00013698,2]
[331785634,1720763439460,-177.57254056,0.00013698,2]
[331785635,1720763439470,-500.0,0.00013698,2]
[331785636,1720763439480,-500.0,0.00013698,2]
[331785637,1720763439490,-500.0,0.00013698,2]
[331785638,1720763439499,-500.0,0.00013698,2]
[331785639,1720763439509,-500.0,0.00013698,2]
[331785641,1720763439519,-1682.98,0.00013698,2]
[331785643,1720763439530,-500.0,0.00013698,2]
[331785644,1720763439540,-837.55,0.00013698,2]
[331785645,1720763439551,-887.36,0.00013698,2]
[331785646,1720763439563,-500.0,0.00013698,2]
[331785647,1720763439572,-500.0,0.00013698,2]
[331785648,1720763439583,-614.63,0.00013698,2]
[331785649,1720763439594,-995.0,0.00013698,2]
[331785650,1720763439606,-500.0,0.00013698,2]
[331785651,1720763439616,-500.0,0.00013698,2]
[331785652,1720763439627,-783.49,0.00013698,2]
[331785653,1720763439637,-751.09,0.00013698,2]
[331785654,1720763439647,-343.3,0.00013698,2]
[331785655,1720763439657,-939.37,0.00013698,2]
[331785656,1720763439666,-500.0,0.00013698,2]
[331785657,1720763439676,-647.16,0.00013698,2]
[331785658,1720763439686,-880.13,0.00013698,2]
[331785659,1720763439696,-579.77,0.00013698,2]
[331785660,1720763439706,-500.0,0.00013698,2]
[331785661,1720763439715,-500.0,0.00013698,2]
[331785662,1720763439725,-500.0,0.00013698,2]
[331785663,1720763439737,-500.0,0.00013698,2]
[331785664,1720763439746,-229.30951582,0.00013698,2]
[331785665,1720763439756,-500.0,0.00013698,2]
[331785666,1720763439766,-500.0,0.00013698,2]
[331785667,1720763439776,-500.0,0.00013698,2]
[331785668,1720763439786,-500.0,0.00013698,2]
[331785669,1720763439796,-500.0,0.00013698,2]
[331785670,1720763439806,-500.0,0.00013698,2]
[331785671,1720763439819,-500.0,0.00013698,2]
[331785672,1720763439829,-679.84,0.00013698,2]
[331785673,1720763439838,-500.0,0.00013698,2]
[331785674,1720763439848,-500.0,0.00013698,2]
[331785675,1720763439858,-691.36,0.00013698,2]
[331785676,1720763439868,-500.0,0.00013698,2]
[331785677,1720763439878,-500.0,0.00013698,2]
[331785678,1720763439888,-500.0,0.00013698,2]
[331785679,1720763439898,-583.18,0.00013698,2]
[331785680,1720763439908,-765.01,0.00013698,2]
[331785681,1720763439918,-500.0,0.00013698,2]
[331785682,1720763439927,-1386.15,0.00013698,2]
[331785683,1720763439937,-500.0,0.00013698,2]
[331785684,1720763439947,-660.29,0.00013698,2]
[331785685,1720763439957,-500.0,0.00013698,2]
[331785686,1720763439967,-6486.68,0.00013698,2]
[331785687,1720763439977,-500.0,0.00013698,2]
[331785688,1720763439987,-576.76,0.00013698,2]
[331785689,1720763439997,-500.0,0.00013698,2]
[331785690,1720763440007,-840.31,0.00013698,2]
[331785691,1720763440017,-500.0,0.00013698,2]
[331785692,1720763440027,-500.0,0.00013698,2]
[331785693,1720763440038,-500.0,0.00013698,2]
[331785694,1720763440048,-1692.17,0.00013698,2]
[331785695,1720763440058,-500.0,0.00013698,2]
[331785696,1720763440070,-500.0,0.00013698,2]
[331785697,1720763440080,-500.0,0.00013698,2]
[331785698,1720763440090,-537.81,0.00013698,2]
[331785699,1720763440100,-500.0,0.00013698,2]
[331785700,1720763440109,-761.91,0.00013698,2]
[331785701,1720763440119,-500.0,0.00013698,2]
[331785702,1720763440129,-500.0,0.00013698,2]
[331785703,1720763440139,-500.0,0.00013698,2]
[331785704,1720763440148,-500.0,0.00013698,2]
[331785705,1720763440158,-500.0,0.00013698,2]
[331785706,1720763440168,-1387.45,0.00013698,2]
[331785707,1720763440178,-500.0,0.00013698,2]
[331785708,1720763440188,-500.0,0.00013698,2]
[331785709,1720763440197,-500.0,0.00013698,2]
[331785710,1720763440207,-613.51,0.00013698,2]
[331785711,1720763440217,-500.0,0.00013698,2]
[331785712,1720763440227,-500.0,0.00013698,2]
[331785713,1720763440237,-834.91,0.00013698,2]
[331785714,1720763440247,-518.2,0.00013698,2]
[331785715,1720763440256,-1549.83,0.00013698,2]
[331785716,1720763440265,-500.0,0.00013698,2]
[331785717,1720763440275,-500.0,0.00013698,2]
[331785718,1720763440285,-500.0,0.00013698,2]
[331785719,1720763440294,-500.0,0.00013698,2]
[331785720,1720763440304,-1157.75,0.00013698,2]
[331785721,1720763440315,-558.4,0.00013698,2]
[331785722,1720763440325,-500.0,0.00013698,2]
[331785723,1720763440334,-500.0,0.00013698,2]
[331785724,1720763440344,-500.0,0.00013698,2]
[331785725,1720763440354,-867.7,0.00013698,2]
[331785726,1720763440365,-500.0,0.00013698,2]
[331785727,1720763440374,-8.88772814,0.00013698,2]
[331785728,1720763440390,-491.11227186,0.00013698,2]
[331785729,1720763440399,-500.0,0.00013698,2]
[331785730,1720763440408,-500.0,0.00013698,2]
[331785731,1720763440418,-29.48880815,0.00013698,2]
[331785732,1720763440430,-1425.33982887,0.00013698,2]
[331785733,1720763440459,-969.78150889,0.00013698,2]
[331785734,1720763440471,-23.41985409,0.00013698,2]
[331785735,1720763440481,-383.15583804,0.00013698,2]
[331785736,1720763440492,-116.84416196,0.00013698,2]
[331785737,1720763440502,-500.0,0.00013698,2]
[331785738,1720763440512,-500.0,0.00013698,2]
[331785739,1720763440521,-466.54383532,0.00013698,2]
[331785740,1720763440531,-303.49200272,0.00013698,2]
[331785741,1720763440543,-6962.50799728,0.00013698,2]
[331785742,1720763440553,-500.0,0.00013698,2]
[331785743,1720763440565,-520.14,0.00013698,2]
[331785744,1720763440574,-995.5,0.00013698,2]
[331785745,1720763440584,-2532.39,0.00013698,2]
[331785746,1720763440593,-500.0,0.00013698,2]
[331785747,1720763440603,-500.0,0.00013698,2]
[331785748,1720763440613,-991.17,0.00013698,2]
[331785749,1720763440622,-500.0,0.00013698,2]
[331785750,1720763440632,-500.0,0.00013698,2]
[331785751,1720763440641,-606.71,0.00013698,2]
[331785752,1720763440651,-500.0,0.00013698,2]
[331785753,1720763440660,-353.90948273,0.00013698,2]
[331785754,1720763440672,-146.09051727,0.00013698,2]
[331785755,1720763440682,-500.0,0.00013698,2]
[331785756,1720763440691,-500.0,0.00013698,2]
[331785757,1720763440701,-3130.05,0.00013698,2]
[331785758,1720763440710,-500.0,0.00013698,2]
[331785759,1720763440719,-640.74,0.00013698,2]
[331785760,1720763440730,-500.0,0.00013698,2]
[331785761,1720763440743,-500.0,0.00013698,2]
[331785762,1720763440753,-500.0,0.00013698,2]
[331785763,1720763440762,-1788.3,0.00013698,2]
[331785764,1720763440771,-500.0,0.00013698,2]
[331785765,1720763440782,-500.0,0.00013698,2]
[331785766,1720763440792,-500.0,0.00013698,2]
[331785767,1720763440802,-500.0,0.00013698,2]
[331785768,1720763440815,-500.0,0.00013698,2]
[331785769,1720763440824,-2059.6,0.00013698,2]
[331785770,1720763440833,-500.0,0.00013698,2]
[331785771,1720763440843,-748.99,0.00013698,2]
[331785772,1720763440853,-500.0,0.00013698,2]
[331785773,1720763440862,-500.0,0.00013698,2]
[331785774,1720763440872,-1087.57,0.00013698,2]
[331785775,1720763440882,-1000.0,0.00013698,2]
[331785776,1720763440892,-500.0,0.00013698,2]
[331785777,1720763440901,-856.78,0.00013698,2]
[331785778,1720763440911,-500.0,0.00013698,2]
[331785779,1720763440921,-500.0,0.00013698,2]
[331785780,1720763440930,-500.0,0.00013698,2]
[331785781,1720763440940,-500.0,0.00013698,2]
[331785782,1720763440950,-659.94,0.00013698,2]
[331785783,1720763440960,-500.0,0.00013698,2]
[331785784,1720763440970,-572.08,0.00013698,2]
[331785785,1720763440979,-967.14,0.00013698,2]
[331785786,1720763440989,-500.0,0.00013698,2]
[331785787,1720763440999,-500.0,0.00013698,2]
[331785788,1720763441008,-695.39,0.00013698,2]
[331785789,1720763441018,-545.8,0.00013698,2]
[331785790,1720763441027,-500.0,0.00013698,2]
[331785791,1720763441037,-2842.33,0.00013698,2]
[331785792,1720763441047,-500.0,0.00013698,2]
[331785793,1720763441057,-500.0,0.00013698,2]
[331785794,1720763441070,-500.0,0.00013698,2]
[331785795,1720763441079,-777.83,0.00013698,2]
[331785796,1720763441088,-500.0,0.00013698,2]
[331785797,1720763441098,-500.0,0.00013698,2]
[331785798,1720763441107,-832.97,0.00013698,2]
[331785799,1720763441117,-500.0,0.00013698,2]
[331785800,1720763441126,-500.0,0.00013698,2]
[331785801,1720763441135,-667.44,0.00013698,2]
[331785802,1720763441145,-500.0,0.00013698,2]
[331785803,1720763441154,-500.0,0.00013698,2]
[331785804,1720763441164,-500.0,0.00013698,2]
[331785805,1720763441174,-500.0,0.00013698,2]
[331785806,1720763441184,-1194.9,0.00013698,2]
[331785807,1720763441194,-762.38,0.00013698,2]
[331785808,1720763441203,-500.0,0.00013698,2]
[331785809,1720763441213,-500.0,0.00013698,2]
[331785810,1720763441223,-500.0,0.00013698,2]
[331785811,1720763441233,-1168.92,0.00013698,2]
[331785812,1720763441242,-500.0,0.00013698,2]
[331785813,1720763441251,-500.0,0.00013698,2]
[331785814,1720763441261,-500.0,0.00013698,2]
[331785815,1720763441271,-500.0,0.00013698,2]
[331785816,1720763441280,-570.01,0.00013698,2]
[331785817,1720763441289,-500.0,0.00013698,2]
[331785818,1720763441299,-500.0,0.00013698,2]
[331785819,1720763441309,-500.0,0.00013698,2]
[331785820,1720763441319,-707.76,0.00013698,2]
[331785821,1720763441328,-500.0,0.00013698,2]
[331785822,1720763441338,-500.0,0.00013698,2]
[331785823,1720763441347,-518.23,0.00013698,2]
[331785824,1720763441357,-3373.02,0.00013698,2]
[331785825,1720763441366,-935.45,0.00013698,2]
[331785826,1720763441377,-500.0,0.00013698,2]
[331785827,1720763441386,-514.17,0.00013698,2]
[331785828,1720763441396,-500.0,0.00013698,2]
[331785829,1720763441406,-546.12,0.00013698,2]
[331785830,1720763441416,-500.0,0.00013698,2]
[331785831,1720763441426,-500.0,0.00013698,2]
[331785832,1720763441436,-500.0,0.00013698,2]
[331785833,1720763441445,-1114.72,0.00013698,2]
[331785834,1720763441455,-500.0,0.00013698,2]
[331785835,1720763441465,-500.0,0.00013698,2]
[331785836,1720763441474,-500.0,0.00013698,2]
[331785837,1720763441484,-500.0,0.00013698,2]
[331785838,1720763441493,-500.0,0.00013698,2]
[331785839,1720763441503,-500.0,0.00013698,2]
[331785840,1720763441513,-500.0,0.00013698,2]
[331785841,1720763441523,-500.0,0.00013698,2]
[331785842,1720763441532,-772.37,0.00013698,2]
[331785843,1720763441541,-1140.86,0.00013699,5]
[331785844,1720763441551,-151.76,0.00013699,2]
[331785845,1720763441561,-220.12,0.00013699,2]
[331785846,1720763441570,-299.7934,0.00013734,2]
[331785847,1720763441579,-1243.741,0.00013737,2]
[331785848,1720763441589,-4851.924,0.00013737,2]
[331785849,1720763441599,-301.3749,0.00013737,2]
[331785850,1720763441608,-458.07945,0.0001375,2]
[331785851,1720763441618,-458.07946,0.0001375,2]
[331785852,1720763441627,-612.88,0.00013753,2]
[331785853,1720763441638,-1333.88,0.00013753,2]
[331785854,1720763441648,-872.68,0.00013753,2]
[331785855,1720763441658,-1623.81,0.00013753,2]
[331785856,1720763441667,-800.77,0.00013753,2]
[331785857,1720763441677,-500.0,0.00013753,2]
[331785858,1720763441687,-500.0,0.00013753,2]
[331785859,1720763441697,-500.0,0.00013753,2]
[331785860,1720763441707,-500.0,0.00013753,2]
[331785861,1720763441717,-643.02,0.00013753,2]
[331785862,1720763441727,-549.31,0.00013753,2]
[331785863,1720763441740,-500.0,0.00013753,2]
[331785864,1720763441749,-605.5,0.00013753,2]
[331785865,1720763441759,-500.0,0.00013753,2]
[331785866,1720763441769,-1333.67,0.00013753,2]
[331785867,1720763441779,-500.0,0.00013753,2]
[331785868,1720763441788,-500.0,0.00013753,2]
[331785869,1720763441798,-950.51,0.00013753,2]
[331785870,1720763441809,-860.57,0.00013753,2]
[331785871,1720763441820,-500.0,0.00013753,2]
[331785872,1720763441830,-1482.38,0.00013753,2]
[331785873,1720763441840,-1224.36,0.00013753,2]
[331785874,1720763441849,-533.51,0.00013753,2]
[331785875,1720763441858,-1715.29,0.00013753,2]
[331785876,1720763441868,-528.27,0.00013753,2]
[331785877,1720763441878,-574.92,0.00013753,2]
[331785878,1720763441888,-500.0,0.00013753,2]
[331785879,1720763441899,-500.0,0.00013753,2]
[331785880,1720763441908,-500.0,0.00013753,2]
[331785881,1720763441918,-500.0,0.00013753,2]
[331785882,1720763441928,-500.0,0.00013753,2]
[331785883,1720763441938,-500.0,0.00013753,2]
[331785884,1720763441947,-500.0,0.00013753,2]
[331785885,1720763441958,-641.67,0.00013753,2]
[331785886,1720763441967,-500.0,0.00013753,2]
[331785887,1720763441977,-500.0,0.00013753,2]
[331785888,1720763441986,-500.0,0.00013753,2]
[331785889,1720763441995,-647.9,0.00013753,2]
[331785890,1720763442006,-500.0,0.00013753,2]
[331785891,1720763442015,-500.0,0.00013753,2]
[331785892,1720763442025,-557.87713645,0.00013753,2]
[331785893,1720763442035,-1007.13,0.00013753,2]
[331785894,1720763442045,-613.34,0.00013753,2]
[331785895,1720763442055,-500.0,0.00013753,2]
[331785896,1720763442065,-973.23,0.00013753,2]
[331785897,1720763442075,-676.24,0.00013753,2]
[331785898,1720763442086,-500.0,0.00013753,2]
[331785899,1720763442095,-1514.54,0.00013753,2]
[331785900,1720763442105,-595.87,0.00013753,2]
[331785901,1720763442115,-500.0,0.00013753,2]
[331785902,1720763442327,-500.0,0.00013753,2]
[331785903,1720763442337,-571.95,0.00013753,2]
[331785904,1720763442347,-500.0,0.00013753,2]
[331785905,1720763442356,-500.0,0.00013753,2]
[331785906,1720763442367,-500.0,0.00013753,2]
[331785908,1720763442376,-500.0,0.00013753,2]
[331785910,1720763442386,-500.0,0.00013753,2]
[331785912,1720763442396,-500.0,0.00013753,2]
[331785913,1720763442405,-500.0,0.00013753,2]
[331785915,1720763442415,-548.58,0.00013753,2]
[331785917,1720763442425,-664.98,0.00013753,2]
[331785918,1720763442435,-500.0,0.00013753,2]
[331785919,1720763442444,-500.0,0.00013753,2]
[331785920,1720763442454,-500.0,0.00013753,2]
[331785922,1720763442463,-547.22,0.00013753,2]
[331785924,1720763442473,-500.0,0.00013753,2]
[331785926,1720763442482,-1098.81,0.00013753,2]
[331785928,1720763442491,-500.0,0.00013753,2]
[331785931,1720763442500,-566.86,0.00013753,2]
[331785935,1720763442510,-907.32,0.00013753,2]
[331785936,1720763442520,-761.45,0.00013753,2]
[331785937,1720763442529,-500.0,0.00013753,2]
[331785938,1720763442539,-500.0,0.00013753,2]
[331785939,1720763442549,-661.69,0.00013753,2]
[331785940,1720763442558,-1595.54,0.00013753,2]
[331785941,1720763442570,-864.13,0.00013753,2]
[331785942,1720763442579,-500.0,0.00013753,2]
[331785943,1720763442589,-500.0,0.00013753,2]
[331785944,1720763442599,-987.51,0.00013753,2]
[331785945,1720763442609,-500.0,0.00013753,2]
[331785946,1720763442619,-500.0,0.00013753,2]
[331785947,1720763442629,-500.0,0.00013753,2]
[331785948,1720763442639,-500.0,0.00013753,2]
[331785949,1720763442648,-512.14,0.00013753,2]
[331785950,1720763442658,-500.0,0.00013753,2]